bitfinex/quotes_ETHUSD_20250215
["timestamp","ask_amount","ask_price","bid_price","bid_amount"]
[1739630707717,6.70334321,2682.8,2682.5,3.72774]
[1739630707930,6.70334321,2682.8,2682.1,5.23709]
[1739630708098,10.43084321,2682.8,2682.1,5.23709]
[1739630708409,7.37367753,2682.8,2682.1,3.72829]
[1739630708612,6.70334321,2682.8,2682.5,3.72785]
[1739630708837,6.70334321,2682.8,2682.3,3.72803]
[1739630709025,6.70334321,2682.8,2682.5,3.72777]
[1739630709172,0.55,2682.7,2682.6,3.72772]
[1739630709377,6.70334321,2682.8,2682.7,3.72758]
[1739630709572,6.70334321,2683.4,2682.7,5.23638]
[1739630710018,0.55,2683.3,2682.7,5.23626]
[1739630710178,0.55,2683.3,2682.8,3.72736]
[1739630710379,0.55,2683.3,2682.7,1.5088]
[1739630710609,0.55,2683.3,2683.0,3.72714]
[1739630710911,6.70334321,2683.2,2683.0,3.72705]
[1739630711116,6.70334321,2683.5,2683.1,3.72703]
[1739630711319,6.70334321,2683.5,2683.2,3.72686]
[1739630712007,6.70334321,2683.5,2683.3,3.72666]
[1739630712324,6.70334321,2683.5,2683.4,3.72661]
[1739630712521,6.70334321,2683.5,2683.3,5.23546]
[1739630713015,7.25334321,2683.5,2683.4,3.72661]
[1739630713419,6.70334321,2683.9,2683.4,4.69670497]
[1739630713620,6.70334321,2683.9,2683.6,3.72625]
[1739630714095,6.70334321,2683.9,2683.7,3.72615]
[1739630714523,6.70334321,2683.9,2683.6,3.72625]
[1739630715313,6.70334321,2683.9,2683.6,3.72624]
[1739630715605,6.70334321,2683.9,2683.4,0.97009497]
[1739630715771,6.70334321,2683.9,2683.5,3.72647]
[1739630715972,0.55,2683.8,2683.3,5.23555]
[1739630716200,0.55,2683.8,2683.4,3.7266]
[1739630716510,6.70334321,2684.2,2684.1,3.72564]
[1739630716689,6.70334321,2684.7,2684.2,3.7255]
[1739630716892,6.70334321,2684.7,2684.0,3.72578]
[1739630717091,6.70334321,2684.7,2684.1,3.72561]
[1739630717456,6.70334321,2684.7,2684.2,3.72547]
[1739630717659,6.70334321,2684.7,2684.4,3.72522]
[1739630718253,6.70334321,2684.6,2684.5,3.72508]
[1739630718489,6.70334321,2684.6,2684.4,3.72522]
[1739630718908,6.70334321,2684.6,2684.4,3.72514]
[1739630719126,6.70334321,2684.6,2684.4,3.7251]
[1739630719327,6.70334321,2684.6,2684.5,1.5776]
[1739630720080,0.55,2684.5,2684.1,0.76088939]
[1739630720283,0.55,2684.5,2683.9,1.5776]
[1739630721413,0.55,2684.5,2683.9,2.32135392]
[1739630721584,6.70334321,2684.4,2683.9,2.32135392]
[1739630721786,0.55,2684.2,2683.9,2.32135392]
[1739630721988,0.55,2684.0,2683.9,0.74375392]
[1739630722287,7.25334321,2684.0,2683.5,1.5776]
[1739630722491,0.55,2683.8,2683.2,5.30443]
[1739630722883,0.55,2683.8,2683.6,3.72628]
[1739630723082,6.70334321,2683.9,2683.8,3.72606]
[1739630723282,6.70334321,2684.5,2683.8,1.5776]
[1739630723490,0.55,2684.4,2683.8,1.5776]
[1739630723700,0.55,2684.4,2683.9,3.72579]
[1739630723901,0.55,2684.4,2684.0,3.72578]
[1739630724609,0.55,2684.4,2683.8,5.30359]
[1739630724802,0.55,2684.4,2683.9,0.73720838]
[1739630725380,0.55,2684.4,2683.9,4.46307838]
[1739630725707,0.55,2684.2,2683.6,3.72626]
[1739630725911,4.27553,2684.2,2683.4,3.72653]
[1739630726112,8.00115,2684.2,2683.4,3.72653]
[1739630726308,3.72553,2684.2,2683.3,1.5776]
[1739630726513,3.72553,2684.2,2683.4,3.72649]
[1739630726708,0.55,2684.1,2683.3,1.5776]
[1739630726909,0.55,2683.9,2683.3,1.5776]
[1739630727315,4.27566,2684.1,2683.6,0.75523995]
[1739630727637,8.30374321,2684.3,2683.6,4.48156995]
[1739630727817,3.79895473,2684.1,2683.8,3.72596]
[1739630727986,3.79895473,2684.1,2684.0,3.72578]
[1739630728820,3.79895473,2684.1,2684.0,5.26028]
[1739630730424,3.79895473,2684.1,2684.0,8.57528]
[1739630730925,3.79895473,2684.1,2684.0,16.93628]
[1739630732130,3.79895473,2684.3,2684.2,3.7255]
[1739630732303,3.79895473,2684.3,2684.2,9.091678]
[1739630733787,3.79895473,2684.3,2684.2,10.626178]
[1739630735001,2.67492674,2684.3,2684.2,10.626178]
[1739630735402,2.67492674,2684.3,2684.2,10.941178]
[1739630735934,0.55,2684.8,2684.3,3.72529]
[1739630736109,1.51958189,2684.9,2684.7,3.72472]
[1739630736308,8.2229251,2684.9,2684.7,3.72472]
[1739630736533,7.25334321,2684.8,2684.7,0.73699582]
[1739630737032,6.70334321,2684.8,2684.7,0.73699582]
[1739630737338,6.70334321,2684.8,2684.7,4.46180582]
[1739630737750,1.51958189,2684.9,2684.7,4.46180582]
[1739630737751,1.51958189,2684.9,2684.8,3.72467]
[1739630738035,1.51958189,2684.9,2684.7,4.46180582]
[1739630738247,1.51958189,2684.9,2684.7,0.73699582]
[1739630738534,0.55,2684.9,2684.7,0.73699582]
[1739630739299,1.51958189,2685.0,2684.8,3.72467]
[1739630739635,1.51958189,2685.0,2684.7,0.73699582]
[1739630739930,1.51958189,2685.0,2684.8,3.72458]
[1739630740342,1.51958189,2685.0,2684.7,0.73699582]
[1739630740516,1.51958189,2685.0,2684.8,3.72464]
[1739630741036,1.51958189,2685.0,2684.7,4.9079624]
[1739630741239,1.51958189,2685.0,2684.8,3.72459]
[1739630741405,1.51958189,2685.0,2684.9,3.72453]
[1739630743038,1.51958189,2685.0,2684.9,5.25903]
[1739630743245,1.51958189,2685.2,2685.1,3.72425]
[1739630744824,1.51958189,2685.2,2685.1,6.72425]
[1739630745129,1.51958189,2685.2,2685.1,7.922563]
[1739630745765,1.51958189,2685.2,2685.1,9.447263]
[1739630747516,10.50453143,2685.6,2685.5,3.7237]
[1739630747716,3.80118822,2685.6,2685.5,3.7237]
[1739630748335,3.80118822,2685.6,2685.5,7.35226644]
[1739630748718,3.80118822,2685.6,2685.5,9.19196644]
[1739630749444,9.39e-06,2685.6,2685.5,9.19196644]
[1739630752238,9.39e-06,2686.0,2685.9,6.72314]
[1739630752436,9.39e-06,2686.0,2685.9,16.122782]
[1739630752705,9.39e-06,2686.0,2685.9,16.437782]
[1739630755271,0.55,2686.5,2686.0,3.0]
[1739630755438,1.5698,2686.4,2686.0,6.72294]
[1739630755639,1.5698,2686.4,2686.1,3.72284]
[1739630755839,1.5698,2686.4,2686.0,6.72294]
[1739630756041,0.55,2686.3,2685.9,8.355]
[1739630756244,0.55,2686.1,2685.9,8.355]
[1739630757244,3.72277,2686.2,2685.9,8.355]
[1739630757658,11.99567321,2686.4,2685.9,8.355]
[1739630757866,0.55,2686.3,2685.9,8.355]
[1739630758667,0.55,2686.1,2685.9,8.355]
[1739630759177,5.8528,2686.0,2685.9,8.355]
[1739630759556,12.55614321,2686.0,2685.9,8.355]
[1739630761079,12.55614321,2686.0,2685.1,0.76252382]
[1739630761080,2.1298,2685.2,2685.1,0.76252382]
[1739630761278,8.83314321,2685.2,2684.5,3.72497]
[1739630761581,7.25334321,2685.1,2684.6,3.0]
[1739630761742,7.25334321,2685.1,2684.8,0.72656063]
[1739630761943,6.70334321,2685.0,2684.8,0.72656063]
[1739630762338,6.70334321,2684.9,2684.8,0.72656063]
[1739630762770,6.70334321,2684.9,2684.5,3.72506]
[1739630762972,6.70334321,2684.9,2684.8,3.72467]
[1739630763175,6.70334321,2684.9,2684.8,6.72467]
[1739630763472,8.28314321,2685.8,2685.4,3.72374]
[1739630763673,6.70334321,2685.7,2685.4,3.72373]
[1739630763881,6.70334321,2685.7,2685.6,3.72356]
[1739630764100,6.70334321,2685.7,2685.6,4.468289]
[1739630764381,6.70334321,2685.7,2685.4,3.0]
[1739630764568,8.28314321,2685.7,2684.9,3.72445]
[1739630764884,12.00657321,2685.7,2685.1,3.0]
[1739630765079,3.7237,2685.5,2684.7,0.73393197]
[1739630765280,6.70334321,2685.4,2684.8,3.9503338]
[1739630765484,6.70334321,2685.4,2685.0,3.7243]
[1739630765686,6.70334321,2685.4,2685.1,3.72416]
[1739630766385,1.5798,2685.3,2684.8,0.2256838]
[1739630766544,8.28314321,2685.3,2684.7,1.04893197]
[1739630766750,0.55,2685.0,2684.4,8.354]
[1739630766947,3.72454,2684.9,2684.6,0.74022782]
[1739630767183,10.42802321,2684.8,2684.6,0.74022782]
[1739630767382,6.70334321,2684.8,2684.6,0.74022782]
[1739630767704,6.70334321,2684.8,2684.6,1.6496506]
[1739630768287,6.70334321,2684.8,2684.6,0.74022782]
[1739630768487,7.25334321,2684.7,2684.6,0.74022782]
[1739630768783,8.83314321,2684.7,2684.4,8.354]
[1739630768983,8.28314321,2684.7,2684.4,8.354]
[1739630770583,6.70334321,2684.7,2684.5,3.72495]
[1739630770749,6.70334321,2684.7,2684.6,5.305345]
[1739630770948,6.70334321,2684.7,2684.6,1.580405]
[1739630771473,6.70334321,2684.7,2684.6,5.305345]
[1739630771677,6.70334321,2685.0,2684.6,1.580405]
[1739630771872,6.70334321,2685.0,2684.8,3.72455]
[1739630772194,6.70334321,2685.0,2684.9,0.372455]
[1739630772395,6.70334321,2685.0,2684.9,4.096985]
[1739630773800,6.70334321,2685.0,2684.9,5.745185]
[1739630773997,6.70334321,2685.6,2685.3,3.7239]
[1739630774198,6.70334321,2685.5,2685.3,3.72387]
[1739630774510,6.70334321,2685.5,2685.4,4.09623]
[1739630775103,6.70334321,2686.0,2685.5,3.72358]
[1739630775279,6.70334321,2686.0,2685.6,3.72355]
[1739630776971,6.70334321,2686.3,2686.0,3.72299]
[1739630777481,6.70334321,2686.3,2686.1,3.72285]
[1739630777676,6.70334321,2686.3,2686.2,3.72273]
[1739630777877,6.70334321,2686.8,2686.3,3.72256]
[1739630778488,1.5892,2686.9,2686.4,3.72244]
[1739630778489,6.70334321,2686.7,2686.4,3.72244]
[1739630778693,6.70334321,2686.8,2686.5,3.7223]
[1739630779202,6.70334321,2686.8,2686.4,3.72241]
[1739630779402,6.70334321,2686.8,2686.5,3.72228]
[1739630779610,6.70334321,2686.8,2686.5,4.466764]
[1739630780102,6.70334321,2686.8,2686.6,3.72206]
[1739630780611,6.70334321,2686.8,2686.5,4.466764]
[1739630780974,6.70334321,2686.8,2686.5,4.466704]
[1739630781168,6.70334321,2686.8,2686.7,3.72203]
[1739630783171,6.70334321,2686.8,2686.3,8.355]
[1739630783172,6.70334321,2687.3,2687.0,3.7215]
[1739630783405,6.70334321,2687.2,2687.0,3.7215]
[1739630783612,6.84778791,2687.5,2687.4,3.72106]
[1739630785080,6.84778791,2687.5,2687.4,8.25576]
[1739630785282,6.70334321,2688.2,2687.5,3.0]
[1739630785588,6.70334321,2688.1,2688.0,5.25493]
[1739630786517,6.70334321,2688.1,2687.8,3.72038]
[1739630786724,6.70334321,2688.1,2687.9,0.525508]
[1739630786896,6.70334321,2688.1,2687.4,3.047396]
[1739630787223,6.70334321,2688.1,2687.5,3.0]
[1739630787394,6.70334321,2688.0,2687.5,3.0]
[1739630787588,6.70334321,2688.0,2687.4,4.8497]
[1739630787788,6.70334321,2688.0,2687.6,3.72071]
[1739630787989,6.70334321,2688.0,2687.7,0.372071]
[1739630788818,6.70334321,2688.0,2687.4,8.57066]
[1739630788997,6.70334321,2688.0,2687.5,6.72092]
[1739630789185,6.70334321,2688.0,2687.5,3.0]
[1739630789994,3.72046,2687.9,2687.3,0.75186178]
[1739630790292,8.35854321,2687.8,2686.9,0.315]
[1739630790601,6.70334321,2687.7,2687.0,3.72152]
[1739630790800,6.70334321,2687.7,2687.2,3.72121]
[1739630790989,6.70334321,2687.7,2687.1,6.72147]
[1739630791189,3.72099,2687.5,2687.0,0.73215088]
[1739630791494,6.70334321,2687.6,2687.0,4.19635597]
[1739630791689,0.55,2687.4,2687.0,1.19635597]
[1739630791911,10.42458321,2687.3,2687.0,0.73215088]
[1739630792092,6.70334321,2687.2,2687.0,0.73215088]
[1739630792288,6.70334321,2687.1,2687.0,4.45377088]
[1739630792593,6.70334321,2687.1,2687.0,6.02007088]
[1739630793011,6.70334321,2687.1,2687.0,9.02007088]
[1739630793220,6.70334321,2687.1,2687.0,10.29424197]
[1739630794134,6.70334321,2687.1,2687.0,6.57262197]
[1739630794334,6.70334321,2687.1,2687.0,5.84047109]
[1739630795592,6.70334321,2687.1,2686.9,1.0600935]
[1739630795930,6.70334321,2687.0,2686.9,0.7450935]
[1739630796909,6.70334321,2687.0,2686.6,3.0]
[1739630797995,6.70334321,2687.0,2686.6,6.72216]
[1739630798203,6.70334321,2687.0,2686.7,1.910838]
[1739630799438,6.70334321,2686.9,2686.7,1.910838]
[1739630799612,6.70334321,2686.8,2686.6,3.75134594]
[1739630800014,6.70334321,2686.8,2686.6,0.75134594]
[1739630800744,6.70334321,2686.8,2686.7,3.72203]
[1739630801426,6.70334321,2686.8,2686.7,6.72203]
[1739630801629,6.70334321,2686.8,2686.7,8.28833]
[1739630801831,6.70334321,2686.8,2686.7,10.39951459]
[1739630804920,6.70334321,2686.8,2686.7,6.67748459]
[1739630805121,6.70334321,2687.3,2686.8,3.0]
[1739630806339,6.70334321,2687.3,2686.8,6.7218]
[1739630806706,6.70334321,2687.3,2686.9,3.72162]
[1739630806911,6.70334321,2687.3,2687.0,0.372162]
[1739630807420,2.1558,2687.1,2686.5,8.35]
[1739630807633,6.70334321,2687.0,2686.6,3.0]
[1739630807837,6.70334321,2687.0,2686.8,3.72179]
[1739630808345,6.70334321,2687.0,2686.9,3.72176]
[1739630808550,6.70334321,2687.0,2686.9,4.125336]
[1739630809144,6.70334321,2687.0,2686.9,0.403576]
[1739630809545,6.70334321,2687.0,2686.9,4.125336]
[1739630809842,6.70334321,2687.0,2686.9,0.403576]
[1739630811056,6.70334321,2687.2,2686.9,0.403576]
[1739630812173,6.70334321,2687.1,2687.0,4.1341126]
[1739630812946,6.70334321,2687.1,2687.0,7.1341126]
[1739630815035,6.70334321,2687.1,2687.0,7.86457299]
[1739630816362,6.70334321,2687.1,2687.0,4.14300299]
[1739630817120,6.70334321,2687.2,2687.0,1.14300299]
[1739630817325,9.92082634,2687.1,2687.0,0.73046039]
[1739630817557,6.19934634,2687.1,2686.3,5.30842]
[1739630817722,9.92096634,2687.0,2686.7,0.72859853]
[1739630817940,6.19934634,2686.9,2686.7,0.72859853]
[1739630818143,9.92123634,2686.8,2686.7,0.72859853]
[1739630818538,9.92123634,2686.8,2686.2,8.349]
[1739630818870,6.19934634,2686.8,2686.3,4.207179]
[1739630819030,3.72203,2686.7,2686.6,0.72748242]
[1739630819431,3.72203,2686.7,2686.3,1.207179]
[1739630819432,3.72224,2686.6,2686.3,1.207179]
[1739630819758,3.7224,2686.5,2686.3,0.72599427]
[1739630819960,6.19934634,2686.4,2686.3,0.72599427]
[1739630821487,6.19934634,2686.4,2686.2,8.349]
[1739630821488,6.19934634,2686.4,2686.2,9.07737531]
[1739630821672,6.19934634,2686.4,2686.3,3.72259]
[1739630822471,6.19934634,2686.4,2686.3,6.72259]
[1739630822658,6.19934634,2686.4,2686.3,8.67485953]
[1739630822851,6.19934634,2686.4,2686.3,10.17815953]
[1739630823050,6.19934634,2686.9,2686.4,3.0]
[1739630823367,6.968,2687.3,2686.4,3.0]
[1739630823568,5.31,2687.3,2687.0,3.72159]
[1739630823752,8.91,2687.2,2687.0,4.093749]
[1739630824141,8.91,2687.2,2687.1,3.72148]
[1739630824343,8.91,2687.2,2687.1,6.72148]
[1739630824752,8.91,2687.2,2687.1,3.0]
[1739630824956,8.91,2687.2,2687.1,6.72148]
[1739630825151,8.91,2687.2,2687.1,7.9533329]
[1739630826565,8.91,2687.2,2687.1,4.2318529]
[1739630827270,8.91,2687.2,2687.1,8.70483369]
[1739630827866,8.91,2687.2,2687.1,4.98335369]
[1739630828041,8.91,2687.2,2687.1,3.75150079]
[1739630828543,8.91,2687.2,2686.4,3.72237]
[1739630828859,12.63146,2687.2,2686.8,0.74286628]
[1739630829066,8.91,2687.1,2686.8,0.74286628]
[1739630829268,8.91,2687.1,2686.5,4.03623]
[1739630829573,8.91,2687.1,2686.7,3.73542273]
[1739630829773,8.91,2687.1,2686.8,3.7218]
[1739630830289,8.91,2687.1,2687.0,6.72162]
[1739630830467,8.91,2687.5,2687.2,3.72129]
[1739630830673,8.91,2687.5,2687.3,0.372129]
[1739630831653,8.91,2687.5,2687.3,4.093319]
[1739630832062,8.91,2687.5,2687.4,3.72106]
[1739630832282,8.91,2687.5,2687.3,0.372129]
[1739630832463,8.91,2687.5,2687.2,3.0]
[1739630833063,8.91,2687.5,2687.2,0.74392158]
[1739630833474,12.63098,2687.5,2687.2,0.74392158]
[1739630833858,8.91,2687.5,2687.2,0.74392158]
[1739630834058,8.91,2687.5,2687.2,4.46515158]
[1739630834266,8.91,2687.5,2687.3,0.44651516]
[1739630834464,12.63103,2687.5,2686.8,6.72178]
[1739630834666,14.18689,2687.4,2686.8,3.0]
[1739630834977,3.7212,2687.3,2686.8,3.0]
[1739630835379,10.4658,2687.4,2686.9,0.73804225]
[1739630836182,10.4658,2687.4,2686.7,8.35]
[1739630836183,0.55,2687.1,2686.7,8.35]
[1739630836351,4.27156,2687.1,2686.7,8.35]
[1739630836555,4.27156,2687.1,2686.8,0.74407042]
[1739630836774,0.55,2687.1,2686.8,0.74407042]
[1739630836980,1.5558,2687.2,2686.8,0.74407042]
[1739630837180,1.5558,2687.2,2686.8,2.02567546]
[1739630837381,5.27716,2687.2,2686.8,2.02567546]
[1739630837686,5.27716,2687.2,2686.8,0.74407042]
[1739630837891,3.72176,2686.9,2686.8,0.74407042]
[1739630838056,3.72176,2686.9,2686.7,8.35]
[1739630838413,12.63189,2686.8,2686.7,8.35]
[1739630838688,14.18769,2686.8,2686.7,8.35]
[1739630839253,10.4658,2686.8,2686.7,8.35]
[1739630840592,10.4658,2686.8,2686.7,8.9879074]
[1739630840593,8.91,2686.8,2686.7,8.9879074]
[1739630840773,8.91,2686.8,2686.7,12.7099374]
[1739630840962,8.91,2686.8,2686.7,8.9879074]
[1739630841300,8.91,2686.8,2686.7,12.7099374]
[1739630841598,8.91,2686.8,2686.7,8.9879074]
[1739630842299,8.91,2687.1,2687.0,3.72162]
[1739630842588,8.91,2687.1,2687.0,6.72162]
[1739630844167,1.5558,2688.2,2687.1,4.5801]
[1739630844483,8.91,2688.1,2687.5,3.72092]
[1739630845110,8.91,2688.1,2687.1,4.5801]
[1739630845111,8.91,2688.1,2687.1,1.5801]
[1739630845395,8.91,2688.1,2687.7,3.72062]
[1739630845802,8.91,2688.1,2687.5,3.72084]
[1739630846198,3.72032,2688.0,2687.2,4.21073]
[1739630846396,3.72032,2688.0,2687.3,3.0]
[1739630846603,3.72032,2688.0,2687.3,6.72119]
[1739630846811,3.72032,2688.0,2687.3,7.89357911]
[1739630846993,3.72037,2687.9,2687.3,7.89357911]
[1739630847198,3.72037,2687.9,2687.2,0.48941]
[1739630847199,5.27646,2687.7,2687.2,0.48941]
[1739630847395,5.27646,2687.7,2687.0,4.45430524]
[1739630847396,9.46,2687.6,2687.0,0.73275524]
[1739630847595,3.72116,2687.4,2687.0,0.73275524]
[1739630847809,3.72122,2687.3,2687.0,0.73275524]
[1739630848187,3.72141,2687.2,2687.0,0.73275524]
[1739630848485,8.91,2687.5,2687.0,0.73275524]
[1739630848486,0.55,2687.4,2687.0,0.73275524]
[1739630849017,4.27107,2687.4,2687.0,0.73275524]
[1739630849192,0.55,2687.4,2687.0,0.73275524]
[1739630849577,4.27107,2687.4,2687.0,0.73275524]
[1739630850300,0.55,2687.4,2687.0,0.73275524]
[1739630850493,4.27107,2687.4,2687.0,0.73275524]
[1739630851391,3.72126,2687.3,2687.0,0.73275524]
[1739630851591,7.44256,2687.3,2687.0,0.73275524]
[1739630851813,3.72144,2687.2,2687.0,0.73275524]
[1739630852616,3.72144,2687.2,2686.7,8.9879074]
[1739630852617,12.63149,2687.1,2686.7,8.9879074]
[1739630852783,8.91,2687.0,2686.7,8.9879074]
[1739630852983,8.91,2687.0,2686.7,8.35]
[1739630853610,8.91,2687.0,2686.8,0.76198059]
[1739630853915,8.91,2687.0,2686.7,8.35]
[1739630854527,8.91,2687.0,2686.7,12.072]
[1739630854822,8.91,2687.0,2686.9,3.72176]
[1739630855123,8.91,2687.0,2686.9,5.37439838]
[1739630858533,8.91,2687.0,2686.9,6.91609838]
[1739630860416,8.91,2687.6,2687.5,3.72093]
[1739630863312,8.91,2687.6,2687.5,5.26263]
[1739630863497,8.91,2687.6,2687.5,6.160998]
[1739630864216,8.91,2687.6,2687.5,9.160998]
[1739630865540,8.91,2687.6,2687.5,9.90154858]
[1739630867548,8.91,2687.6,2687.5,8.35984858]
[1739630870210,14.22,2687.7,2687.6,3.72079]
[1739630870440,5.31,2688.2,2687.9,7.44056]
[1739630870662,8.91,2688.1,2687.9,3.72027]
[1739630870860,8.91,2688.2,2687.9,3.72027]
[1739630871057,8.91,2688.2,2688.0,4.092257]
[1739630871229,8.91,2688.1,2688.0,0.372027]
[1739630871859,8.91,2688.1,2688.0,4.092257]
[1739630872527,8.91,2688.1,2688.0,0.372027]
[1739630872709,6.8761,2688.3,2688.1,3.72009]
[1739630872710,8.91,2688.2,2688.1,3.72009]
[1739630872911,8.91,2688.2,2688.1,4.5013287]
[1739630875734,8.91,2688.2,2688.1,0.7812387]
[1739630876854,8.91,2688.2,2688.1,4.5013287]
[1739630877160,8.91,2688.2,2688.1,0.7812387]
[1739630877458,8.91,2688.2,2688.1,1.51396941]
[1739630878020,8.91,2688.2,2688.1,5.23405941]
[1739630879459,14.22,2688.2,2687.8,3.72049]
[1739630879958,14.22,2688.2,2687.8,4.48059861]
[1739630880131,14.22,2688.2,2687.8,6.05874936]
[1739630880536,15.8591,2688.2,2687.8,0.76010861]
[1739630880859,3.72036,2688.0,2687.5,8.348]
[1739630881061,3.72038,2687.9,2687.5,8.348]
[1739630881760,3.72036,2688.0,2687.5,9.08182006]
[1739630881967,7.44068,2688.0,2687.5,9.08182006]
[1739630882132,8.91,2688.1,2687.6,3.72076]
[1739630882331,8.91,2688.1,2687.5,9.8615134]
[1739630882526,3.72031,2688.0,2687.5,9.8615134]
[1739630883141,3.7206,2687.8,2687.5,9.8615134]
[1739630883342,3.7206,2687.8,2687.5,9.08182006]
[1739630883862,8.91,2687.7,2687.5,9.08182006]
[1739630884067,3.72079,2687.6,2687.5,9.08182006]
[1739630884271,12.63079,2687.6,2687.5,9.08182006]
[1739630884850,13.18079,2687.6,2687.5,9.08182006]
[1739630885247,13.18079,2687.6,2687.5,8.348]
[1739630887154,18.49079,2687.6,2687.5,8.348]
[1739630889363,3.72126,2687.3,2687.1,0.7399883]
[1739630889752,0.55,2687.4,2687.1,0.7399883]
[1739630889963,4.27107,2687.4,2687.1,0.7399883]
[1739630890163,1.5424,2687.5,2687.1,1.18615613]
[1739630890478,1.5424,2687.5,2687.1,0.44616783]
[1739630891163,14.22,2687.6,2687.5,3.72093]
[1739630891654,14.22,2687.6,2687.3,3.7211]
[1739630895419,14.22,2687.6,2687.0,5.31702831]
[1739630895551,14.22,2687.6,2687.3,3.72113]
[1739630895957,14.22,2687.6,2687.5,3.72093]
[1739630896280,14.22,2687.6,2687.5,7.465136]
[1739630896481,14.22,2687.6,2687.5,9.053636]
[1739630897780,8.91,2688.3,2687.5,2.332706]
[1739630897982,8.91,2688.3,2688.1,3.72009]
[1739630898493,8.91,2688.3,2687.9,3.7203]
[1739630898795,8.91,2688.3,2688.0,4.09223]
[1739630898977,8.91,2688.3,2688.2,3.71996]
[1739630900100,8.91,2688.3,2688.2,6.71996]
[1739630900275,7.88640001,2688.3,2688.2,11.87113886]
[1739630900472,0.005,2688.4,2688.3,3.71982]
[1739630900675,0.005,2688.4,2688.3,5.65092489]
[1739630901896,0.005,2688.4,2688.3,1.93110489]
[1739630902197,0.005,2688.4,2688.2,3.71996]
[1739630902371,7.88640001,2688.3,2688.0,4.8438213]
[1739630902572,7.88640001,2688.2,2688.0,4.8438213]
[1739630902766,7.88640001,2688.1,2688.0,4.8438213]
[1739630903294,7.88640001,2688.1,2688.0,1.1236613]
[1739630903696,7.88640001,2688.1,2688.0,4.8438913]
[1739630904671,7.88640001,2688.1,2688.0,9.4046913]
[1739630905403,0.005,2688.4,2688.3,8.28062]
[1739630905594,0.005,2688.4,2688.3,9.780677]
[1739630907476,0.005,2688.4,2688.3,18.127677]
[1739630907674,0.005,2688.4,2688.3,14.407857]
[1739630907890,0.005,2688.4,2688.3,8.347]
[1739630908083,7.89140001,2688.4,2688.3,8.347]
[1739630908275,13.20140001,2688.4,2688.3,8.347]
[1739630908482,19.04388001,2688.4,2688.3,8.347]
[1739630909003,14.77420001,2688.4,2688.3,8.347]
[1739630909391,13.20140001,2688.4,2688.3,8.347]
[1739630909593,13.20140001,2688.4,2688.3,12.88684203]
[1739630909908,5.315,2688.4,2688.3,12.88684203]
[1739630910206,5.315,2688.4,2688.3,15.88684203]
[1739630911599,5.315,2688.4,2688.3,17.43674203]
[1739630912801,5.315,2688.4,2688.3,12.16702203]
[1739630913099,5.315,2688.4,2688.3,11.347]
[1739630913300,5.315,2688.4,2688.3,8.347]
[1739630914677,5.315,2688.4,2688.3,12.06682]
[1739630915111,5.315,2688.4,2688.3,15.06682]
[1739630915112,13.20140001,2688.4,2688.3,15.06682]
[1739630916993,13.20140001,2688.4,2688.3,6.71982]
[1739630917177,13.20140001,2688.4,2688.2,3.71995]
[1739630917688,13.20140001,2688.4,2688.3,3.71982]
[1739630918673,13.20140001,2688.4,2688.3,8.26972]
[1739630919918,13.20140001,2688.4,2688.3,6.71982]
[1739630921114,13.20140001,2688.4,2688.2,0.371995]
[1739630921415,13.20140001,2688.4,2688.0,7.44028]
[1739630921744,13.20140001,2688.4,2688.0,3.72014]
[1739630922090,13.20140001,2688.4,2688.1,3.72]
[1739630922286,13.20140001,2688.4,2687.9,8.346]
[1739630922490,13.20140001,2688.4,2688.0,3.72023]
[1739630922690,13.20140001,2688.4,2688.1,1.17022234]
[1739630922891,13.20140001,2688.4,2688.1,4.89030234]
[1739630923395,13.20140001,2688.4,2688.0,3.72013]
[1739630924925,13.20140001,2688.4,2688.2,3.71987]
[1739630925925,13.20140001,2688.4,2688.3,3.71982]
[1739630926526,13.20140001,2688.4,2687.9,8.346]
[1739630926694,13.20140001,2688.4,2688.1,3.72008]
[1739630927023,7.88640001,2688.3,2688.1,4.4121697]
[1739630927412,7.88640001,2688.3,2688.1,4.4121197]
[1739630928125,7.88640001,2688.2,2688.1,0.6921497]
[1739630928325,7.88640001,2688.2,2687.9,8.346]
[1739630928524,3.72012,2688.1,2687.9,8.346]
[1739630928729,7.88640001,2688.2,2687.9,8.346]
[1739630929097,11.60646001,2688.2,2687.9,8.346]
[1739630929301,11.60643001,2688.2,2687.9,8.346]
[1739630930731,7.88640001,2688.2,2687.9,13.34863565]
[1739630931235,7.88640001,2688.2,2688.0,3.72016]
[1739630931417,7.88640001,2688.2,2687.9,5.00263565]
[1739630931621,7.88640001,2688.2,2688.1,3.72009]
[1739630931823,7.88640001,2688.2,2687.9,3.72027]
[1739630932955,7.88640001,2688.1,2687.8,4.47649652]
[1739630933093,7.88640001,2688.1,2687.8,0.75602652]
[1739630933506,9.50820001,2688.0,2687.8,0.75602652]
[1739630933718,13.22846001,2688.0,2687.8,0.75602652]
[1739630933918,9.50820001,2688.0,2687.8,0.75602652]
[1739630934829,13.22847001,2688.0,2687.8,0.75602652]
[1739630935035,3.72037,2687.9,2687.8,0.75602652]
[1739630935236,16.91677001,2687.9,2687.8,0.75602652]
[1739630935446,16.91677001,2687.9,2687.4,12.06804]
[1739630935638,7.88640001,2687.8,2687.4,14.09833]
[1739630935837,11.60698001,2687.8,2687.4,10.37729]
[1739630936207,7.88640001,2687.8,2687.6,0.76182256]
[1739630937045,7.88640001,2687.8,2687.7,3.72065]
[1739630938341,7.88640001,2687.8,2687.6,0.76182256]
[1739630938716,7.88640001,2687.7,2687.6,0.76182256]
[1739630940213,11.60705001,2687.7,2687.6,0.76182256]
[1739630941433,7.88640001,2687.7,2687.4,8.347]
[1739630942245,7.88640001,2687.7,2687.5,0.72782325]
[1739630943713,7.88640001,2687.7,2687.5,4.44873325]
[1739630943914,7.88640001,2687.7,2687.5,6.02263325]